bitfinex/quotes_SOLUSD_20240703
["timestamp","ask_amount","ask_price","bid_price","bid_amount"]
[1720011108420,20.0,142.15,142.07,7.2087]
[1720011108619,20.0,142.15,142.07,0.17]
[1720011108834,20.0,142.15,142.07,0.34]
[1720011109229,20.0,142.15,142.07,0.17]
[1720011109436,20.0,142.15,142.02,7.0409]
[1720011109951,20.0,142.15,142.03,7.0404]
[1720011110254,20.0,142.15,142.02,17.6023]
[1720011110255,0.17,142.14,142.02,17.6023]
[1720011110422,6.1881,142.13,141.94,106.6275]
[1720011110618,20.34,142.12,141.97,7.0433]
[1720011110851,15.795,142.11,141.96,30.0]
[1720011111060,15.795,142.11,141.94,6.6275]
[1720011111061,6.1881,142.09,141.94,7.0452]
[1720011111223,20.34,142.08,141.92,230.73666543]
[1720011111425,21.9831,142.07,141.89,387.5796]
[1720011111752,20.34,142.06,141.89,6.6275]
[1720011112052,20.17,142.06,141.94,7.0452]
[1720011112343,20.17,142.06,141.95,7.0446]
[1720011112542,20.0,142.06,141.95,7.0446]
[1720011112746,20.0,142.06,141.95,7.0445]
[1720011113315,20.0,142.06,141.96,0.34]
[1720011113544,20.0,142.06,141.96,7.3842]
[1720011113918,20.0,142.06,141.96,0.34]
[1720011114118,20.0,142.06,141.96,0.17]
[1720011114429,20.0,142.06,141.92,17.6149]
[1720011114613,0.17,142.05,141.9,7.0468]
[1720011114817,0.17,142.05,141.89,7.0477]
[1720011114818,0.34,142.05,141.89,7.0477]
[1720011115137,0.34,142.05,141.92,7.0461]
[1720011115339,0.34,142.05,141.93,7.0456]
[1720011115522,0.17,142.05,141.94,7.0451]
[1720011115928,0.17,142.05,141.95,7.2146]
[1720011116127,20.0,142.06,141.95,7.2146]
[1720011116321,20.0,142.06,141.96,0.17]
[1720011116867,0.17,142.05,141.95,0.17]
[1720011117017,0.17,142.05,141.95,0.34]
[1720011117215,0.17,142.05,141.95,0.17]
[1720011117420,0.17,142.05,141.94,0.17]
[1720011117715,0.17,142.05,141.94,0.34]
[1720011117915,0.17,142.05,141.9,17.6175]
[1720011118118,6.1631,142.04,141.86,213.12166543]
[1720011118342,20.17,142.03,141.87,100.0]
[1720011118663,20.0,142.03,141.92,7.046]
[1720011119240,20.0,142.03,141.93,0.17]
[1720011119443,20.0,142.03,141.93,7.2157]
[1720011119643,20.0,142.03,141.93,0.17]
[1720011120031,20.0,142.03,141.92,0.34]
[1720011120349,0.17,142.02,141.9,7.0471]
[1720011120555,0.17,142.02,141.91,7.0466]
[1720011120855,0.17,142.02,141.92,7.0461]
[1720011121054,0.17,142.02,141.9,17.6178]
[1720011121220,0.17,142.02,141.83,379.1462]
[1720011121221,15.1757,142.01,141.83,379.1462]
[1720011121427,20.0,142.0,141.85,130.0]
[1720011121624,20.0,142.0,141.9,7.0471]
[1720011121850,20.0,142.0,141.89,24.6664]
[1720011122358,20.0,142.0,141.83,7.0505]
[1720011122359,6.4351,141.98,141.83,7.0505]
[1720011122563,20.17,141.97,141.83,24.6762]
[1720011122768,15.9493,141.96,141.81,213.12166543]
[1720011122927,20.17,141.95,141.79,6.02]
[1720011123259,20.17,141.95,141.78,363.3334]
[1720011123560,6.4248,141.94,141.79,7.0525]
[1720011123742,20.17,141.93,141.78,363.3334]
[1720011124134,20.17,141.93,141.81,24.6801]
[1720011124767,20.17,141.93,141.78,363.3334]
[1720011124768,0.17,141.92,141.78,380.9657]
[1720011124929,0.17,141.92,141.78,17.6323]
[1720011125261,0.17,141.92,141.75,230.75806543]
[1720011125478,0.17,141.92,141.75,213.12166543]
[1720011125664,15.9623,141.91,141.75,213.12166543]
[1720011125855,15.9623,141.91,141.78,7.053]
[1720011125856,20.17,141.9,141.78,7.053]
[1720011126663,6.5792,141.89,141.78,7.0531]
[1720011126825,6.5792,141.89,141.74,7.006338]
[1720011126826,20.0,141.88,141.74,7.888138]
[1720011127159,6.5792,141.86,141.74,0.833238]
[1720011127526,20.17,141.85,141.74,0.833238]
[1720011127742,20.0,141.85,141.75,7.0545]
[1720011128053,20.0,141.85,141.74,0.833238]
[1720011128347,20.0,141.85,141.74,18.470238]
[1720011128645,20.0,141.85,141.74,7.888238]
[1720011129247,20.0,141.85,141.75,7.2245]
[1720011129431,20.0,141.85,141.75,0.17]
[1720011130534,20.0,141.85,141.75,0.34]
[1720011131149,20.0,141.85,141.75,0.17]
[1720011131455,20.0,141.85,141.74,0.833238]
[1720011131965,0.34,141.84,141.74,0.833238]
[1720011132481,23.0326,141.83,141.74,0.833238]
[1720011132773,20.17,141.82,141.74,0.833238]
[1720011132952,9.8442,141.81,141.65,24.7077]
[1720011133268,26.8976,141.8,141.65,24.7077]
[1720011133465,26.8976,141.8,141.65,17.6483]
[1720011133848,26.5576,141.8,141.65,100.0]
[1720011134161,26.5576,141.8,141.71,7.0565]
[1720011134360,26.5576,141.8,141.68,17.6451]
[1720011134556,26.5576,141.8,141.64,7.0597]
[1720011134760,0.17,141.79,141.68,7.0581]
[1720011134951,0.17,141.79,141.67,7.0585]
[1720011135151,26.5576,141.8,141.63,200.0]
[1720011135352,26.5576,141.8,141.63,100.0]
[1720011135554,26.5576,141.8,141.69,7.0575]
[1720011135774,26.5576,141.8,141.63,200.0]
[1720011135970,26.5576,141.8,141.7,17.6425]
[1720011136273,26.5576,141.8,141.71,0.34]
[1720011136471,26.5576,141.8,141.71,0.17]
[1720011136854,6.5576,141.8,141.71,0.34]
[1720011137586,6.5576,141.8,141.71,7.3963]
[1720011138059,6.5576,141.8,141.73,7.0554]
[1720011138258,6.5576,141.8,141.74,0.17]
[1720011138575,20.0,141.79,141.74,0.34]
[1720011138782,20.0,141.79,141.74,0.17]
[1720011138950,20.0,141.79,141.73,0.17]
[1720011139150,20.0,141.79,141.72,7.396]
[1720011139879,20.0,141.79,141.72,0.17]
[1720011140059,20.0,141.79,141.62,100.0]
[1720011140250,0.17,141.78,141.64,17.6494]
[1720011140674,0.34,141.78,141.64,17.6494]
[1720011140856,22.8272,141.77,141.6,6.963638]
[1720011141057,20.34,141.76,141.6,0.833238]
[1720011141271,6.5308,141.75,141.6,18.487638]
[1720011141474,20.34,141.74,141.6,25.549338]
[1720011141655,20.34,141.74,141.6,18.487638]
[1720011141862,20.34,141.74,141.61,7.0613]
[1720011142067,20.34,141.74,141.6,18.487638]
[1720011142263,20.34,141.74,141.61,7.0612]
[1720011142473,20.17,141.74,141.61,7.0612]
[1720011143188,20.17,141.74,141.6,0.833238]
[1720011143362,37.78,141.72,141.6,0.833238]
[1720011143675,37.78,141.72,141.59,9.59399141]
[1720011143676,6.623,141.69,141.59,9.59399141]
[1720011143851,15.634,141.67,141.59,9.59399141]
[1720011144052,20.17,141.66,141.59,9.59399141]
[1720011144274,0.17,141.65,141.59,9.59399141]
[1720011144660,0.17,141.65,141.51,7.0665]
[1720011144860,20.17,141.66,141.52,17.6644]
[1720011145060,20.0,141.66,141.54,7.0647]
[1720011145264,20.0,141.66,141.52,17.6644]
[1720011145459,0.17,141.65,141.52,17.6644]
[1720011145665,0.17,141.65,141.53,7.0652]
[1720011145866,20.0,141.66,141.54,17.6623]
[1720011146078,20.0,141.66,141.49,200.0]
[1720011146254,20.0,141.66,141.49,100.0]
[1720011146674,20.0,141.66,141.48,37.78]
[1720011147066,20.0,141.66,141.49,100.0]
[1720011147261,20.0,141.66,141.58,24.72]
[1720011147457,20.0,141.66,141.55,17.6608]
[1720011147657,20.0,141.66,141.52,7.0658]
[1720011147875,20.0,141.66,141.51,7.0665]
[1720011148280,20.0,141.66,141.52,7.066]
[1720011148582,0.17,141.65,141.53,7.0656]
[1720011148763,0.17,141.65,141.52,7.0659]
[1720011149086,20.0,141.66,141.54,17.6621]
[1720011151456,15.634,141.67,141.58,17.9974]
[1720011151659,15.634,141.67,141.6,7.0621]
[1720011151964,15.634,141.67,141.62,7.061]
[1720011152163,6.623,141.67,141.61,7.4012]
[1720011152688,15.2504,141.72,141.61,17.993]
[1720011152866,15.2504,141.72,141.61,0.34]
[1720011153062,15.2504,141.72,141.6,0.34]
[1720011153276,15.2504,141.72,141.63,7.0606]
[1720011153485,15.2504,141.72,141.64,0.34]
[1720011154455,15.2504,141.72,141.64,0.17]
[1720011154656,15.2504,141.72,141.56,16.4531]
[1720011154958,15.2504,141.72,141.6,24.7169]
[1720011155163,20.0,141.71,141.6,17.6549]
[1720011155383,20.0,141.71,141.57,17.6584]
[1720011155572,20.0,141.71,141.59,7.0622]
[1720011155756,20.0,141.71,141.6,7.062]
[1720011155960,20.0,141.71,141.56,7.0636]
[1720011156287,20.0,141.71,141.59,7.0625]
[1720011156472,20.0,141.71,141.6,7.062]
[1720011156778,20.0,141.71,141.62,7.0607]
[1720011157092,20.0,141.71,141.55,21.2]
[1720011157262,20.0,141.71,141.56,0.17]
[1720011157576,20.0,141.71,141.6,7.062]
[1720011157880,20.0,141.71,141.63,7.0602]
[1720011158188,20.0,141.71,141.65,7.0592]
[1720011158379,20.0,141.71,141.66,0.17]
[1720011158586,20.0,141.71,141.66,7.2291]
[1720011158797,20.0,141.71,141.67,0.17]
[1720011159096,15.2504,141.72,141.67,0.17]
[1720011159384,15.2504,141.72,141.67,17.8162]
[1720011159597,15.2504,141.72,141.68,0.17]
[1720011161098,15.2504,141.72,141.67,0.34]
[1720011161400,15.2504,141.72,141.68,0.17]
[1720011161559,15.2504,141.72,141.66,0.34]
[1720011162188,6.3339,141.73,141.68,7.0581]
[1720011162366,20.0,141.72,141.69,0.17]
[1720011163404,20.0,141.72,141.68,0.34]
[1720011163698,20.0,141.72,141.67,0.17]
[1720011164063,6.3339,141.73,141.67,17.816]
[1720011164278,6.3339,141.73,141.68,7.2277]
[1720011164482,6.3339,141.73,141.68,0.17]
[1720011164890,15.2504,141.76,141.68,0.17]
[1720011164891,15.2504,141.76,141.68,1.58103755]
[1720011165073,6.2069,141.77,141.7,7.057]
[1720011165282,6.2069,141.77,141.71,0.34]
[1720011165790,6.2069,141.77,141.71,0.17]
[1720011165970,6.2069,141.77,141.7,0.34]
[1720011166577,6.2069,141.77,141.71,7.0562]
[1720011166790,6.2069,141.77,141.72,0.34]
[1720011166973,20.0,141.76,141.72,0.17]
[1720011168389,19.04,141.76,141.72,0.17]
[1720011168769,19.04,141.76,141.71,0.34]
[1720011169481,19.04,141.76,141.7,0.34]
[1720011169864,19.04,141.76,141.71,7.0564]
[1720011170068,19.04,141.76,141.72,0.34]
[1720011170263,19.04,141.76,141.7,0.34]
[1720011170584,19.04,141.76,141.73,0.17]
[1720011170778,19.04,141.76,141.71,7.0562]
[1720011170986,20.0,141.79,141.72,7.3961]
[1720011171181,20.0,141.79,141.72,7.0561]
[1720011171388,20.0,141.79,141.73,0.34]
[1720011171770,20.0,141.79,141.74,7.0546]
[1720011171984,5.9223,141.81,141.75,0.34]
[1720011172192,5.9223,141.81,141.75,1.58041749]
[1720011172494,5.9223,141.81,141.76,0.17]
[1720011173068,5.9223,141.81,141.75,7.3945]
[1720011173505,15.2504,141.84,141.76,7.0541]
[1720011173666,15.2504,141.84,141.77,8.7155405]
[1720011173975,5.9223,141.86,141.79,17.631]
[1720011174289,5.9223,141.86,141.8,0.34]
[1720011174881,5.9223,141.86,141.79,0.34]
[1720011176580,20.0,141.85,141.79,0.34]
[1720011176776,20.0,141.85,141.79,7.0526]
[1720011177089,20.0,141.85,141.8,7.3921]
[1720011177278,20.0,141.85,141.81,0.34]
[1720011177594,5.9223,141.86,141.81,7.3914]
[1720011177973,15.2504,141.88,141.81,7.3914]
[1720011178173,15.2504,141.88,141.81,0.34]
[1720011178591,0.024,141.92,141.81,127.9019]
[1720011178891,0.024,141.92,141.81,6.7019]
[1720011179088,0.024,141.92,141.82,17.6274]
[1720011179268,0.024,141.92,141.83,0.34]
[1720011179874,0.024,141.92,141.83,30.34]
[1720011180090,0.024,141.92,141.84,7.0498]
[1720011180292,0.024,141.92,141.85,0.34]
[1720011180899,0.024,141.92,141.86,0.17]
[1720011181086,0.024,141.92,141.86,17.7926]
[1720011181395,0.024,141.92,141.87,0.17]
[1720011181582,0.024,141.92,141.87,7.2187]
[1720011181890,0.024,141.92,141.88,0.17]
[1720011182784,0.024,141.92,141.88,30.17]
[1720011183572,0.024,141.92,141.89,1.57909077]
[1720011183777,0.024,141.92,141.9,1.57917072]
[1720011184084,0.024,141.92,141.9,0.17]
[1720011184485,0.024,141.92,141.9,0.34]
[1720011184894,0.024,141.92,141.9,0.17]
[1720011185280,0.024,141.92,141.9,0.34]
[1720011186585,0.024,141.92,141.9,30.34]
[1720011187201,0.024,141.92,141.9,47.9575]
[1720011187601,0.024,141.92,141.91,7.0467]
[1720011187794,0.024,141.92,141.91,37.3867]
[1720011188183,0.833238,141.95,141.93,7.0452]
[1720011188492,0.833238,141.95,141.94,7.3852]
[1720011188686,38.613238,142.1,142.01,7.0417]
[1720011188687,5.9223,142.07,142.01,7.0417]
[1720011188879,5.9223,142.07,142.03,7.0406]
[1720011189081,5.9223,142.07,142.03,17.6016]
[1720011189403,0.833238,142.1,141.96,158.98]
[1720011189404,0.833238,142.1,141.98,100.0]
[1720011189602,0.833238,142.1,142.04,24.6397]
[1720011189899,0.833238,142.1,142.01,17.6035]
[1720011190209,0.833238,142.1,142.02,0.17]
[1720011190413,0.833238,142.1,142.07,0.17]
[1720011190787,0.833238,142.1,142.06,0.34]
[1720011191910,0.833238,142.1,142.05,0.34]
[1720011192288,0.833238,142.1,142.06,0.17]
[1720011192500,0.833238,142.1,142.04,0.34]
[1720011192680,0.833238,142.1,142.05,0.17]
[1720011192884,0.833238,142.1,142.04,0.17]
[1720011193105,0.833238,142.1,142.03,0.34]
[1720011193617,0.833238,142.1,142.03,0.17]
[1720011194812,0.833238,142.1,142.0,7.0421]
[1720011195119,0.833238,142.1,141.99,9.96545196]
[1720011195290,0.833238,142.1,141.99,2.92315196]
[1720011195514,0.833238,142.1,141.94,36.1872]
[1720011195689,0.833238,142.1,141.95,1.40630934]
[1720011195897,0.833238,142.1,141.99,7.0423]
[1720011196090,0.833238,142.1,141.98,24.6505]
[1720011196300,0.17,142.09,141.96,7.0439]
[1720011196890,0.17,142.09,141.97,7.0435]
[1720011197487,0.833238,142.1,141.94,39.11138167]
[1720011197686,0.833238,142.1,141.96,100.0]
[1720011197888,0.833238,142.1,142.02,7.0408]
[1720011198303,0.833238,142.1,141.97,32.92356376]
[1720011198605,0.833238,142.1,142.04,7.0398]
[1720011198813,0.833238,142.1,142.05,0.34]
[1720011198988,0.833238,142.1,142.04,0.34]
[1720011200199,0.833238,142.1,142.06,7.0392]
[1720011200402,0.833238,142.1,142.07,0.34]
[1720011200786,0.833238,142.1,142.07,17.9367]
[1720011201298,0.833238,142.1,142.07,47.9367]
[1720011201611,0.833238,142.1,142.07,30.34]
[1720011202206,0.833238,142.1,142.07,37.3787]
[1720011202413,0.833238,142.1,142.07,30.34]
[1720011202916,0.833238,142.1,142.07,30.0]
[1720011203118,0.833238,142.1,142.01,17.6035]
[1720011203291,0.833238,142.1,141.98,9.58235784]
[1720011203495,0.833238,142.1,142.02,7.0411]
[1720011203816,0.833238,142.1,142.03,7.0407]
[1720011204112,0.833238,142.1,141.99,2.92315196]
[1720011204113,0.833238,142.1,141.99,20.52955196]
[1720011204292,0.833238,142.1,142.0,30.17]
[1720011204697,0.833238,142.1,142.04,7.0402]
[1720011204909,0.833238,142.1,142.07,7.0384]
[1720011205106,0.833238,142.1,142.05,0.17]
[1720011205107,0.833238,142.1,142.05,17.7689]
[1720011205517,0.833238,142.1,142.06,0.17]
[1720011205926,0.833238,142.1,142.07,7.0387]
[1720011206214,0.833238,142.1,142.09,7.0377]
[1720011206390,0.833238,142.1,142.09,7.3777]
[1720011206595,0.833238,142.1,142.09,0.34]
[1720011207018,0.833238,142.1,142.08,0.34]
[1720011207217,0.833238,142.1,142.09,7.0377]
[1720011207532,5.9223,142.21,142.09,151.54]
[1720011207808,5.9223,142.21,142.13,7.0354]
[1720011208019,5.9223,142.21,142.14,17.9277]
[1720011208398,5.9223,142.21,142.14,24.9629]
[1720011208914,0.833238,142.24,142.15,1.40649459]
[1720011209133,0.833238,142.24,142.16,0.34]
[1720011209416,0.833238,142.24,142.16,1.74629673]
[1720011209712,0.833238,142.24,142.16,8.78039673]
[1720011210418,0.833238,142.24,142.17,7.0337]
[1720011210623,0.833238,142.24,142.18,0.34]
[1720011212631,0.833238,142.24,142.17,0.34]
[1720011214509,0.833238,142.24,142.16,7.3741]
[1720011214703,0.833238,142.24,142.18,7.033]
[1720011214918,0.833238,142.24,142.19,0.34]
[1720011215507,0.833238,142.24,142.18,0.34]
[1720011215706,0.833238,142.24,142.19,0.17]
[1720011216021,0.833238,142.24,142.17,7.3737]
[1720011216433,0.833238,142.24,142.18,7.0333]
[1720011216746,0.833238,142.24,142.19,0.34]
[1720011217228,0.833238,142.24,142.1,24.12088914]
[1720011217408,0.833238,142.24,142.13,7.0358]
[1720011217602,0.833238,142.24,142.11,32.9206836]
[1720011217796,21.1727,142.22,142.11,32.9206836]
[1720011218221,20.0,142.21,142.11,2.9206836]
[1720011218801,20.0,142.21,142.06,17.5974]
[1720011219011,20.0,142.21,142.09,7.0376]
[1720011219199,20.0,142.21,142.1,7.037]
[1720011219715,20.0,142.21,142.11,7.0367]
[1720011219894,20.0,142.21,142.07,30.0]
[1720011219895,20.0,142.21,142.1,7.0371]
[1720011220101,20.0,142.21,142.07,30.0]
[1720011220306,20.0,142.21,142.09,7.0377]
[1720011220521,20.0,142.21,142.07,32.92150592]
[1720011220720,20.0,142.21,142.08,0.17]
[1720011220916,20.0,142.21,142.07,32.92150592]
[1720011221117,0.17,142.2,142.04,6.4029]
[1720011221318,5.9223,142.19,142.04,6.4029]
[1720011221516,20.0,142.18,142.11,7.0367]
[1720011221713,20.0,142.18,142.12,7.0362]
[1720011221916,20.0,142.18,142.11,24.6285]
[1720011222104,20.0,142.18,142.12,7.0362]
[1720011222300,20.0,142.18,142.13,0.34]
[1720011222902,15.2504,142.22,142.13,17.589]
[1720011223104,15.2504,142.22,142.14,7.3751]
[1720011223318,15.2504,142.22,142.14,0.34]
[1720011223610,15.2504,142.22,142.07,7.0386]
[1720011223822,15.2504,142.22,142.06,30.0]
[1720011224008,15.2504,142.22,142.08,17.5946]
[1720011224226,20.0,142.21,142.07,121.2]
[1720011224697,20.0,142.21,142.13,7.0357]
[1720011224904,20.0,142.21,142.07,121.2]
[1720011225134,20.0,142.21,142.12,7.0361]
[1720011225319,20.0,142.21,142.13,0.34]
[1720011225527,20.0,142.21,142.13,7.3757]
[1720011225829,20.0,142.21,142.13,0.34]
[1720011226732,20.0,142.21,142.14,24.623]
[1720011226906,20.0,142.21,142.15,0.34]
[1720011227111,15.2504,142.22,142.13,7.3755]
[1720011227335,15.2504,142.22,142.13,0.34]
[1720011227631,15.2504,142.22,142.12,0.34]
[1720011228146,15.2504,142.22,142.13,7.0357]
[1720011228304,20.0,142.21,142.14,0.34]
[1720011228508,20.0,142.21,142.14,7.0351]
[1720011228746,20.0,142.21,142.15,0.34]
[1720011229042,0.833238,142.24,142.15,0.34]
[1720011229215,0.833238,142.24,142.22,17.578]
[1720011229428,0.833238,142.24,142.23,0.17]
[1720011229668,0.833238,142.24,142.15,0.34]
[1720011229964,0.833238,142.24,142.16,2.91965635]
[1720011230131,0.833238,142.24,142.17,0.34]
[1720011231155,0.833238,142.24,142.2,7.0323]
[1720011231345,0.833238,142.24,142.21,0.34]
[1720011232242,0.833238,142.24,142.21,7.3717]
[1720011232446,0.833238,142.24,142.21,0.34]
[1720011232646,0.833238,142.24,142.22,7.0311]
[1720011232841,0.833238,142.24,142.23,0.34]
[1720011233456,0.833238,142.24,142.22,0.34]
[1720011234136,0.833238,142.24,142.22,7.3712]
[1720011234552,0.833238,142.24,142.23,7.0308]
[1720011234737,0.833238,142.24,142.23,7.3708]
[1720011235531,0.833238,142.24,142.23,0.34]
[1720011236039,0.833238,142.24,142.23,7.3708]
[1720011237051,0.653238,142.24,142.23,7.3708]
[1720011240253,0.473238,142.24,142.23,7.3708]
[1720011240755,20.0,142.33,142.24,7.03]
[1720011240960,20.0,142.33,142.25,0.17]
[1720011241456,20.0,142.33,142.25,7.1998]
[1720011241854,20.0,142.33,142.25,0.17]
[1720011242173,20.0,142.33,142.17,6.3977]
[1720011242452,20.0,142.33,142.18,32.91924565]
[1720011242633,21.1181,142.28,142.18,32.91924565]
[1720011242837,21.1181,142.28,142.06,213.12166543]
[1720011242838,5.9223,142.23,142.06,213.12166543]
[1720011243232,20.0,142.22,142.06,213.12166543]
[1720011243452,20.0,142.22,142.06,218.77592455]
[1720011243758,6.0923,142.21,142.05,6.3977]
[1720011244059,12.3311,142.19,142.05,29.57047993]
[1720011244233,19.79316876,142.19,142.07,7.0383]
[1720011244561,27.46206876,142.18,142.07,7.0386]
[1720011245052,27.46206876,142.18,142.05,23.9968]
[1720011245246,27.46206876,142.18,142.07,7.0383]
[1720011245439,27.46206876,142.18,142.08,7.0381]
[1720011245638,27.46206876,142.18,142.09,7.0377]
[1720011245835,20.0,142.18,142.11,17.5919]
[1720011246037,20.0,142.18,142.08,7.0378]
[1720011246237,20.0,142.18,142.06,17.597]
[1720011246659,20.0,142.18,142.06,24.6358]
[1720011246956,20.0,142.18,142.06,17.597]
[1720011247131,20.0,142.18,142.07,0.17]
[1720011247335,20.0,142.18,142.08,7.0382]
[1720011247537,20.0,142.18,142.09,7.2077]
[1720011247749,20.0,142.18,142.1,0.17]
[1720011248160,20.0,142.18,142.03,17.6017]
[1720011248559,20.0,142.18,142.05,7.0393]
[1720011248742,20.0,142.18,142.06,7.0391]
[1720011249055,20.0,142.18,142.07,7.0387]
[1720011249242,20.0,142.18,142.06,7.0392]
[1720011249560,20.0,142.18,142.07,0.17]
[1720011250358,20.0,142.18,142.02,0.6116]
[1720011250359,56.0334,142.16,142.02,0.6116]
[1720011250543,29.12523676,142.15,142.02,0.6116]
[1720011250883,37.78,142.12,142.02,0.6116]
[1720011251235,20.0,142.11,142.03,7.0406]
[1720011251442,20.0,142.11,142.02,25.2553]
[1720011251840,20.0,142.11,142.02,0.6116]
[1720011252358,5.9223,142.1,142.02,0.6116]
[1720011252740,20.0,142.09,142.02,0.6116]
[1720011254442,0.17,142.08,142.02,0.6116]
[1720011254643,5.9223,142.07,141.95,7.0443]
[1720011254966,5.9223,142.07,141.94,17.6123]
[1720011255154,5.9223,142.07,141.9,455.31800306]
[1720011255355,20.0,142.06,141.97,7.0434]
[1720011255669,11.7195,142.05,141.96,24.6542]
[1720011255849,20.0,142.04,141.96,24.6542]
[1720011256049,20.0,142.04,141.97,7.0435]
[1720011256255,20.0,142.04,141.98,17.6077]
[1720011256779,5.9223,142.07,142.0,24.6472]
[1720011257087,20.0,142.06,142.01,0.34]
[1720011257255,20.0,142.06,142.01,0.17]
[1720011257583,20.0,142.06,141.99,7.0425]
[1720011257883,20.0,142.06,142.0,7.0422]
[1720011258188,20.0,142.06,141.99,24.649]
[1720011258658,20.0,142.06,141.99,17.6063]
[1720011258859,20.0,142.06,142.0,0.17]
[1720011259247,20.0,142.06,142.01,7.0414]
[1720011259445,20.0,142.06,142.02,0.17]
[1720011259647,20.0,142.06,142.02,0.34]
[1720011260062,11.7195,142.1,142.02,0.34]
[1720011260855,11.7195,142.1,142.04,7.0399]
[1720011261155,11.7195,142.1,142.05,0.34]
[1720011261364,11.7195,142.1,142.04,0.17]
[1720011261564,11.7195,142.1,142.02,17.9427]
[1720011262059,20.0,142.09,142.04,17.6004]
[1720011262251,20.0,142.09,142.05,0.34]
[1720011262454,20.0,142.1,142.05,0.34]
[1720011263370,20.0,142.1,142.06,0.17]
[1720011263578,20.0,142.1,142.04,0.34]
[1720011263790,20.0,142.1,141.98,33.38]
[1720011263951,20.0,142.1,142.0,7.0418]
[1720011264147,20.0,142.1,142.03,7.0407]
[1720011264394,20.0,142.1,142.01,7.0412]
[1720011264673,20.0,142.1,141.98,15.7724]
[1720011264674,20.0,142.1,142.02,7.0408]
[1720011264859,20.0,142.1,141.98,15.7724]
[1720011265055,20.0,142.1,142.03,7.0404]
[1720011265256,20.0,142.1,142.04,0.17]
[1720011265455,20.0,142.1,142.04,7.3802]
[1720011266653,20.0,142.1,142.05,7.0396]
[1720011266874,20.0,142.1,142.06,0.34]
[1720011267448,20.0,142.1,141.98,136.9724]
[1720011267449,20.0,142.1,141.98,33.3795]
[1720011267847,11.7195,142.09,141.95,29.78897121]
[1720011268055,20.0,142.08,141.99,17.6064]
[1720011268356,20.0,142.08,141.93,15.1498]
[1720011268565,20.0,142.08,141.96,7.0441]
[1720011268770,5.9223,142.07,141.96,17.6096]
[1720011268970,20.0,142.06,141.96,17.6096]
[1720011269164,20.0,142.06,141.96,24.6533]
[1720011269363,20.0,142.06,141.96,17.6096]
[1720011269670,20.0,142.06,141.97,7.0435]
[1720011269871,20.0,142.06,141.98,7.0429]
[1720011270660,20.0,142.06,141.97,7.0435]
[1720011270863,20.0,142.06,141.99,0.17]
[1720011271287,20.0,142.06,141.99,7.2126]